Cogmind - Beta 16 --- EXPLORER MODE // 2026.01.29 @ 12:46:31 Player: K.K.Y. Result: Destroyed by P-70 Sage with High-powered Shock Rifle Performance ------------- Evolutions (5) 2500 Regions Visited (6) 1200 Robots Destroyed (150) 750 Value Destroyed (6218) 6218 Prototype IDs (18) 360 Alien Tech Used (0) 0 Bonus (1982) 1982 TOTAL SCORE: 13010 Bonus ------- Follower Combat Kills 104 Delivered SUBCON Basin 2000 Friendly Fire -122 Cogmind --------- Core Integrity 0/1000 Matter 300/300 Energy 100/100 System Corruption 33% Temperature Cool (0) Movement Core (350) Ox6 Location -5/Factory Parts ------- > --- POWER (2) -------- (None) > --- PROPULSION (5) --- (None) > --- UTILITY (8) ------ Large Storage Unit Experimental Target Analyzer Experimental Target Analyzer Graphene Brace (fused) > --- WEAPON (3) ------- (None) > --- INVENTORY (15) --- Advanced Heat Sink Advanced Heat Sink Advanced Cooling System Advanced Cooling System Advanced Signal Interpreter Transmission Jammer Graphene Brace Improved Hacking Suite Advanced Hacking Suite System Shield Tech Extrapolator Improved Remote Datajack Improved Plasma Cutter PL-3XN's Ring of Power Peak State ------------ > --- POWER ------------ Reinforced Fission Core Antimatter Reactor > --- PROPULSION ------- Improved Treads Armored Medium Treads Armored Medium Treads > --- UTILITY ---------- Improved Cooling System Advanced Cooling System Advanced Cooling System Large Storage Unit Experimental Target Analyzer Advanced Particle Accelerator Advanced Particle Accelerator Makeshift Hacking Suite > --- WEAPON ----------- Heavy Wave Gun Heavy Wave Gun Heavy Wave Gun > --- INVENTORY -------- Advanced Cooling System Advanced Cooling System Advanced Signal Interpreter Experimental Target Analyzer Experimental Target Analyzer Transmission Jammer Graphene Brace Improved Hacking Suite Advanced Hacking Suite System Shield Tech Extrapolator Thief Drone Bay Improved Remote Datajack Improved Plasma Cutter PL-3XN's Ring of Power [Rating: 110] Favorites ----------- Power Light Ion Engine Engine Light Ion Engine Power Core Reinforced Fission Core Reactor Antimatter Reactor Propulsion Light Treads Treads Light Treads Leg Carbon-fiber Leg Utility Large Storage Unit Device Thief Drone Bay Storage Large Storage Unit Processor Experimental Target Analyzer Hackware Makeshift Hacking Suite Protection Makeshift Light Armor Plating Weapon Powered Cannon Energy Gun Heavy Wave Gun Energy Cannon Powered Cannon Ballistic Gun KE Penetrator Ballistic Cannon Magnetic Acceleration Cannon Special Weapon Mining Laser Build | -11 -10 -10 -10 -7 -7 -5 ------- Run | Yrd Mat Min Sub Rec Scr Fac Slots Evolved 11 | . 1 . . . . 10 Power 1 | . . . . . . 1 Propulsion 3 | . . . . . . 3 Utility 6 | . 1 . . . . 5 Weapon 1 | . . . . . . 1 Parts Attached 92 | 6 1 3 9 8 2 63 Power 15 | 1 . . 3 1 1 9 Engine 8 | 1 . . 2 1 . 4 Core 5 | . . . 1 . 1 3 Reactor 2 | . . . . . . 2 Propulsion 19 | 2 . . 2 3 1 11 Treads 18 | 2 . . 2 3 1 10 Leg 1 | . . . . . . 1 Wheel . | . . . . . . . Hover . | . . . . . . . Flight . | . . . . . . . Utility 38 | 1 1 2 1 4 . 29 Device 25 | . . 2 . 3 . 20 Storage 5 | 1 1 . 1 1 . 1 Processor 4 | . . . . . . 4 Hackware 1 | . . . . . . 1 Protection 3 | . . . . . . 3 Artifact . | . . . . . . . Weapon 20 | 2 . 1 3 . . 14 Energy Gun 9 | 1 . 1 1 . . 6 Energy Cannon 1 | . . . 1 . . . Ballistic Gun 2 | 1 . . . . . 1 Ballistic Cannon 5 | . . . . . . 5 Launcher . | . . . . . . . Special Weapon 3 | . . . 1 . . 2 Impact Weapon . | . . . . . . . Slashing Weapon . | . . . . . . . Piercing Weapon . | . . . . . . . Special Melee Weapon . | . . . . . . . Unidentified Prototypes 6 | . . 1 . . . 5 Parts Lost 55 | . . . 5 1 . 49 Power 10 | . . . 2 . . 8 Propulsion 12 | . . . 1 . . 11 Utility 20 | . . . . 1 . 19 Weapon 13 | . . . 2 . . 11 Highest Loss Streak 15 | . . . 2 1 . 15 To Critical Strikes 1 | . . . 1 . . . Average Backups 14 | . 2 2 13 20 24 15 Power . | . . . . . 2 . Propulsion . | . . . . . . . Utility 10 | . 1 1 9 13 16 11 Weapon 3 | . 1 1 4 5 5 1 Tool/Special . | . . . . . . . Unused Backups 36 | . . . . 7 2 27 Power 2 | . . . . . . 2 Propulsion 1 | . . . . . . 1 Utility 21 | . . . . 2 1 18 Weapon 10 | . . . . 5 1 4 Tool/Special 2 | . . . . . . 2 Average Slot Usage (%) 70 | . 75 85 67 67 75 73 Engine 8 | . 12 12 10 12 6 2 Core 2 | . . . 1 . 5 4 Treads 17 | . 25 25 15 25 25 12 Device 13 | . . 10 12 5 12 21 Storage 9 | . 12 12 11 12 12 4 Processor 1 | . . . . . . 4 Energy Gun 5 | . 12 24 2 . . 8 Energy Cannon 6 | . . . 10 12 12 . Peak Build Rating 110 | 6 6 15 43 45 39 110 Average Rating 46 | 5 6 11 28 37 37 88 On Entrance 20 | . 6 6 15 43 37 39 Avg Prop Armor Cover (%) 8 | . . . . . . 8 Naked Turns . | . . . . . . . Heaviest Build 259 | 19 29 35 212 212 62 259 Greatest Support 154 | 40 40 40 40 44 50 154 Greatest Overweight (x) 26 | . . . 10 5 1 26 Average Overweight (x) 1 | . . . 2 1 1 1 Largest Inventory Capacity 35 | 10 15 15 35 35 25 35 Average Capacity 22 | 9 10 15 24 28 25 18 Most Carried 35 | 5 3 3 35 35 25 34 Average Carried 17 | 1 2 2 17 26 24 16 Final Capacity 35 | 10 15 15 35 25 25 15 Final Carried 34 | 2 2 2 34 25 25 14 Class Distribution -------------------- 47% | Hacker-Mutant 30% | Hauler-Mutant 11% | Hacker-Gunner 3% | Hauler-Tank Dominant Class ---------------- Hacker-Mutant | -10/Materials Hacker-Mutant | -10/Mines Hacker-Mutant | -10/Subcaves Hacker-Mutant | -7/Recycling Hacker-Mutant | -7/Scraptown Hacker-Gunner | -5/Factory Resources | -11 -10 -10 -10 -7 -7 -5 ----------- Run | Yrd Mat Min Sub Rec Scr Fac Matter Collected 2839 | 272 82 52 140 115 20 2158 Remotely . | . . . . . . . Salvage Created 6738 | 100 310 163 572 256 . 5337 Parts 311 | 7 16 20 41 6 . 221 Haulers Intercepted 3 | . 1 . . . . 2 Recyclers Shooed 5 | . 2 . . . . 3 Parts Field Recycled . | . . . . . . . Retrieved Matter . | . . . . . . . Parts Self-Destructed . | . . . . . . . Prevented . | . . . . . . . Parts Restored . | . . . . . . . Kills | -11 -10 -10 -10 -7 -7 -5 ------- Run | Yrd Mat Min Sub Rec Scr Fac Combat Hostiles Destroyed 110 | . 4 6 13 3 . 84 Melee 6 | . . . . . . 6 Guns 63 | . 4 6 7 . . 46 Cannons 32 | . . . 6 2 . 24 AOE 4 | . . . . . . 4 Classes Destroyed 19 | 2 4 1 3 1 . 8 Worker 5 | . 1 . . . . 4 Builder 8 | . 1 2 . . . 5 Tunneler 2 | 1 . . . . . 1 Hauler 3 | . 1 . . . . 2 Recycler 9 | 1 1 . . 1 . 6 Mechanic 3 | . . . . . . 3 Operator 3 | . . . . . . 3 Watcher 5 | . . . . . . 5 Swarmer 18 | . . 4 2 . . 12 Grunt 37 | . 4 2 . . . 31 Sentry 9 | . . . . 3 . 6 Specialist 6 | . . . . . . 6 Hunter 3 | . . . . . . 3 Programmer 23 | . . . . . . 23 Heavy 2 | . . . . . . 2 Behemoth 1 | . . . . . . 1 Artisan 3 | . . . 3 . . . Subdweller 11 | . . . 11 . . . Zionite 2 | . . . 2 . . . Best Kill Streak 6 | 1 4 2 2 1 . 6 Combat Bots Only 4 | . 2 2 2 1 . 4 Max Kills in Single Turn 6 | 1 2 1 1 1 . 6 Gunslinging 1 | . . . . . . 1 Exploded 3 | . . . . . . 3 Melee 1 | . . . . . . 1 Uniques/NPCs Destroyed . | . . . . . . . Combat | -11 -10 -10 -10 -7 -7 -5 -------- Run | Yrd Mat Min Sub Rec Scr Fac Hostile Shots Fired 1321 | . 31 14 97 189 . 990 Missed 352 | . 9 1 38 56 . 248 Hits 969 | . 22 13 59 133 . 742 Projectile 969 | . 22 13 59 133 . 742 AOE 3 | . . . . . . 3 Critical Strikes 36 | . . . 1 . . 35 Actively Blocked 12 | . . . . . . 12 Part Disruptions 2 | . . . . . . 2 Damage Taken 10334 | . 154 90 608 590 . 8892 Core 1190 | . 28 7 55 95 . 1005 Absorbed by Shields 149 | . . . . . . 149 Ignored by Resistances 6331 | . 100 57 356 424 . 5394 Regen/Repaired (Parts) 127 | . . . . . . 127 Core Remaining (%) 63 | 100 . . . . 26 . Volleys Fired 460 | 4 24 12 93 19 . 308 Largest 3 | 2 2 2 2 1 . 3 Hottest 264 | 70 70 115 165 40 . 264 Shots Fired 849 | 8 47 24 143 19 . 608 Gun 612 | 8 47 24 97 . . 436 Cannon 213 | . . . 22 19 . 172 Launcher . | . . . . . . . Special 24 | . . . 24 . . . Kinetic 220 | 4 24 4 . . . 188 Thermal 608 | 4 23 20 143 19 . 399 Explosive . | . . . . . . . Electromagnetic 21 | . . . . . . 21 Robot Hit Streak 51 | 2 32 29 51 11 . 48 Robot Miss Streak 3 | 1 1 . 1 1 . 3 Penetration Max 1 | . . . . . . 1 Secondary Targets 8 | . 2 . . . . 6 Max Gunslinging Chain 1 | . 1 . . . . 1 Shots Hit Robots 653 | 5 43 20 83 17 . 485 Core Hits 251 | 3 16 11 26 2 . 193 Critical Kills 2 | . . . . 1 . 1 Critical Parts Destroyed 1 | . . . . . . 1 Critical Strikes 59 | . 1 1 7 1 . 49 Burn 44 | . 1 1 7 . . 35 Meltdown 2 | . . . . 1 . 1 Destroy 1 | . . . . . . 1 Blast 12 | . . . . . . 12 Melee Attacks . | . . . . . . . Impact . | . . . . . . . Slashing . | . . . . . . . Piercing . | . . . . . . . Sneak Attacks . | . . . . . . . Combat Hostiles . | . . . . . . . Follow-up Attacks . | . . . . . . . Damage Inflicted 21021 | 65 556 283 1554 899 . 17664 Guns 13010 | 65 556 283 969 . . 11137 Cannons 6699 | . . . 585 899 . 5215 Explosions 1055 | . . . . . . 1055 Melee . | . . . . . . . Ramming 257 | . . . . . . 257 Kinetic 5368 | 39 284 51 . . . 4994 Thermal 15103 | 26 272 232 1554 899 . 12120 Explosive . | . . . . . . . Electromagnetic 293 | . . . . . . 293 Impact . | . . . . . . . Slashing . | . . . . . . . Piercing . | . . . . . . . Highest Corruption 33 | . . . . . . 33 Average Corruption 15 | . . . . . . 15 Corruption Purged . | . . . . . . . Corruption Blocked . | . . . . . . . Effects 277 | . . . . . . 277 Message Errors 55 | . . . . . . 55 Matter Fused 79 | . . . . . . 79 Heat Flow Errors 30 | . . . . . . 30 Energy Discharges 29 | . . . . . . 29 Parts Rejected 6 | . . . . . . 6 Parts Fused 3 | . . . . . . 3 Data Loss (minor) 24 | . . . . . . 24 Data Loss (major) 14 | . . . . . . 14 Misfires 10 | . . . . . . 10 Alerts 5 | . . . . . . 5 Misdirections 5 | . . . . . . 5 Weapon Failures 17 | . . . . . . 17 Overload Shots . | . . . . . . . Overflow Damage 275 | . . . . 86 . 189 Projectiles 240 | . . . . 86 . 154 Explosions 35 | . . . . . . 35 Melee . | . . . . . . . Knockbacks 35 | . . . . . . 35 Impact 1 | . . . . . . 1 Kinetic 30 | . . . . . . 30 Secondary 4 | . . . . . . 4 Self-Inflicted Damage 81 | . . . . . . 81 Shots 3 | . . . . . . 3 Rammed 63 | . . . . . . 63 Targets Rammed 69 | . . . . . . 69 Kicked . | . . . . . . . Crushed 6 | . . . . . . 6 Highest Temperature 473 | 18 168 108 45 50 . 473 Average Temperature 75 | 8 60 49 13 20 . 94 Received Heat Transfer 3203 | . 141 69 120 306 . 2567 Effects 7 | . . . . . . 7 Shutdowns 2 | . . . . . . 2 Energy Bleed 1 | . . . . . . 1 Interference 2 | . . . . . . 2 Short Circuit 1 | . . . . . . 1 Damage (minor) 1 | . . . . . . 1 Siege Activations . | . . . . . . . Martial Activations . | . . . . . . . Shielding Activations . | . . . . . . . Robots Disrupted . | . . . . . . . Combat Hostiles . | . . . . . . . Robots Corrupted . | . . . . . . . Combat Hostiles . | . . . . . . . Parts Fried 1 | . . . . . . 1 Impact Corruptions . | . . . . . . . Robots Melted 7 | . . . . 1 . 6 Combat Hostiles 5 | . . . . 1 . 4 Parts Melted 51 | . 1 . 6 2 . 42 Heat Transferred 19691 | 74 888 703 2960 . . 15066 Parts Sabotaged . | . . . . . . . Parts Stolen . | . . . . . . . Parts Stripped . | . . . . . . . Power Chain Reactions . | . . . . . . . Alert | -11 -10 -10 -10 -7 -7 -5 ------- Run | Yrd Mat Min Sub Rec Scr Fac Maximum Alert Level 1 | . . . . . . 1 Low Security (%) 99 | 100 100 100 . 100 . 99 Level 1 . | . . . . . . . Level 2 . | . . . . . . . Level 3 . | . . . . . . . Level 4 . | . . . . . . . Level 5 . | . . . . . . . High Security . | . . . . . . . Max Security . | . . . . . . . Peak Influence 235 | 5 37 74 . 20 . 235 Initial . | . . . . . . . Average 12 | 1 9 6 . . . 19 Influence Increases 3314 | 10 107 164 272 123 . 2638 Destroy 0b10 Robot/C 2060 | . 80 120 120 60 . 1680 Destroy 0b10 Robot/NC 190 | 10 20 10 . 5 . 145 Destroy Leader 436 | . 2 30 . . . 404 Allied During Kill 6 | . . 4 2 . . . Successful Hack 131 | . 5 . . 56 . 70 Disable Machine 68 | . . . . . . 68 Destroy Structure 198 | . . . . 2 . 196 Partial Spotted 30 | . . . . . . 30 Lose Combat Pursuer 195 | . . . 150 . . 45 Influence Decreases 3314 | 10 107 164 272 123 . 2638 Time Decay 3021 | 10 107 164 252 123 . 2365 Lost Part 293 | . . . 20 . . 273 Squads Dispatched 29 | . . . . . . 29 Investigation 6 | . . . . . . 6 Extermination 11 | . . . . . . 11 Reinforcement 9 | . . . . . . 9 Assault . | . . . . . . . Garrison 3 | . . . . . . 3 Intercept . | . . . . . . . Searches Triggered . | . . . . . . . Construction Impeded . | . . . . . . . Haulers Reinforced 2 | . . . . . . 2 Active Scanning Responses . | . . . . . . . Cargo Convoy Interrupts 1 | . . . . . . 1 Stealth | -11 -10 -10 -10 -7 -7 -5 --------- Run | Yrd Mat Min Sub Rec Scr Fac Distress Signals 7 | . . . . . . 7 Communications Jammed 4 | . . . . . . 4 Distress Signals 4 | . . . . . . 4 Times Spotted 167 | . 7 6 28 2 . 124 Peak Tracking Total 7 | . 3 2 6 1 . 7 Tactical Retreats 6 | . . . 3 . . 3 Traps | -11 -10 -10 -10 -7 -7 -5 ------- Run | Yrd Mat Min Sub Rec Scr Fac Traps Triggered 1 | . . . 1 . . . Indirectly . | . . . . . . . Trap Hack Attempts . | . . . . . . . Triggered . | . . . . . . . Disarmed 3 | . 3 . . . . . Reprogrammed . | . . . . . . . Reused . | . . . . . . . Traps Extracted . | . . . . . . . Installed . | . . . . . . . Triggered . | . . . . . . . Machines | -11 -10 -10 -10 -7 -7 -5 ---------- Run | Yrd Mat Min Sub Rec Scr Fac Machines Disabled 19 | . . . 2 . . 17 Max in Single Turn 9 | . . . 1 . . 9 Machines Repaired . | . . . . . . . Machines Dismantled . | . . . . . . . Machines Sabotaged . | . . . . . . . Overloaded Fab Kills . | . . . . . . . Hacking | -11 -10 -10 -10 -7 -7 -5 --------- Run | Yrd Mat Min Sub Rec Scr Fac Machines Accessed 28 | . 2 1 4 8 . 13 Terminals 11 | . 2 . . 5 . 4 Fabricators 1 | . . . . . . 1 Repair Stations 2 | . . . . . . 2 Recycling Units 7 | . . . . 3 . 4 Scanalyzers 1 | . . . . . . 1 Garrison Access 1 | . . . . . . 1 Total Hacks 69 | . 6 1 9 17 . 36 Successful 36 | . 3 1 9 9 . 14 Failed 33 | . 3 . . 8 . 22 Catastrophic 5 | . . . . 2 . 3 Database Lockouts . | . . . . . . . Manual 12 | . 4 . . 5 . 3 Terminals 23 | . 6 . . 10 . 7 Fabricators 2 | . . . . . . 2 Repair Stations 6 | . . . . . . 6 Recycling Units 19 | . . . . 7 . 12 Scanalyzers 4 | . . . . . . 4 Garrison Access 5 | . . . . . . 5 Terminal Hacks 17 | . 3 1 9 2 . 2 Record 6 | . . . 6 . . . Part Schematic 6 | . 2 . . 2 . 2 Open Door 2 | . . 1 1 . . . Disarm Traps 1 | . 1 . . . . . Proto ID Catalog 1 | . . . 1 . . . Release Object 1 | . . . 1 . . . Fabricator Hacks . | . . . . . . . Repair Station Hacks 3 | . . . . . . 3 Scan Component 2 | . . . . . . 2 Repair 1 | . . . . . . 1 Recycling Unit Hacks 7 | . . . . 3 . 4 Retrieve Components 7 | . . . . 3 . 4 Scanalyzer 3 | . . . . . . 3 Insert Component 2 | . . . . . . 2 Analyze 1 | . . . . . . 1 Garrison Access Hacks 1 | . . . . . . 1 Unlock Access 1 | . . . . . . 1 Unauthorized Hacks 5 | . . . . 4 . 1 Terminals 3 | . . . . 3 . . Botnet 3 | . . . . 3 . . Fabricators . | . . . . . . . Repair Stations . | . . . . . . . Recycling Units 2 | . . . . 1 . 1 Reject 2 | . . . . 1 . 1 Scanalyzers . | . . . . . . . Garrison Access . | . . . . . . . Data Cores Recovered . | . . . . . . . Used . | . . . . . . . Hacking Detections 19 | . 1 . . 5 . 13 Full Trace Events 9 | . . . . 3 . 6 Feedback Events 2 | . . . . . . 2 Corruption 2 | . . . . . . 2 Feedback Blocked . | . . . . . . . Robot Schematics Acquired . | . . . . . . . Robots Built . | . . . . . . . Authchips . | . . . . . . . Time . | . . . . . . . Total Robot Build Rating . | . . . . . . . Part Schematics Acquired 7 | . 2 . . 2 . 3 Parts Built . | . . . . . . . Authchips . | . . . . . . . Time . | . . . . . . . Total Part Build Rating . | . . . . . . . Part Studies Acquired . | . . . . . . . Parts Repaired 1 | . . . . . . 1 Time 49 | . . . . . . 49 Parts Recycled . | . . . . . . . Recycled Matter . | . . . . . . . Retrieved Matter . | . . . . . . . Retrieved Components 43 | . . . . 3 . 40 Parts Scanalyzed 1 | . . . . . . 1 Part Schematics Acquired 1 | . . . . . . 1 Parts Damaged . | . . . . . . . Bothacking | -11 -10 -10 -10 -7 -7 -5 ------------ Run | Yrd Mat Min Sub Rec Scr Fac Used RIF Installer . | . . . . . . . Robots Hacked . | . . . . . . . Non-combat . | . . . . . . . Combat . | . . . . . . . Robot Hacks Applied . | . . . . . . . Relay Couplers Released . | . . . . . . . Fabnet Peak Effective % . | . . . . . . . Robots Rewired . | . . . . . . . Allies Hacked . | . . . . . . . Hacks Repelled . | . . . . . . . Allies | -11 -10 -10 -10 -7 -7 -5 -------- Run | Yrd Mat Min Sub Rec Scr Fac Total Allies 3 | . . 3 . . . . Largest Group 3 | . . 3 3 . . . Highest-Rated Group 40 | . . 40 40 . . . Highest-Rated Ally 16 | . . 16 16 . . . Total Orders 1 | . . . . . . 1 EXPLORE 1 | . . . . . . 1 Ally Attacks 52 | . . . 52 . . . Total Damage 436 | . . . 436 . . . Kills 7 | . . . 7 . . . Allies Corrupted . | . . . . . . . Allies Melted . | . . . . . . . Intel | -11 -10 -10 -10 -7 -7 -5 ------- Run | Yrd Mat Min Sub Rec Scr Fac Active Infowar (turns) 6630 | . . 438 5331 5 . 856 Sensors 854 | . . . . . . 854 Terrain 345 | . . . . . . 345 Structural 5769 | . . 438 5331 . . . Jamming 635 | . . . . 5 . 630 Robot Analysis Total . | . . . . . . . Derelict Logs Recovered 3 | . . 1 2 . . . Drone Launches 7 | . . . 5 . . 2 Drone Recoveries 4 | . . . 2 . . 2 Exploration | -11 -10 -10 -10 -7 -7 -5 ------------- Run | Yrd Mat Min Sub Rec Scr Fac Turns Passed 23114 | 93 206 1295 10556 3022 1248 6694 Spaces Moved 6835 | 52 78 761 2524 901 545 1974 Core 22 | 13 . . . . . 9 Treads 6729 | 39 78 761 2524 901 545 1881 Legs 84 | . . . . . . 84 Wheels . | . . . . . . . Hover . | . . . . . . . Flight . | . . . . . . . Fastest Speed 50 | 50 160 160 160 165 225 158 Average Speed 294 | 132 160 160 367 319 228 268 Slowest Speed 1350 | 160 160 160 960 615 232 1350 Overloaded Moves . | . . . . . . . Propulsion Burnouts . | . . . . . . . Robots Hopped . | . . . . . . . Potential Cave-ins 4 | . . . . . . 4 Cave-ins Triggered . | . . . . . . . Exploration Rate (%) 56 | 3 17 99 81 99 46 52 Regions Visited 6 Branch Regions 4 Pre-discovered Areas 1 | . . . 1 . . . Known Exits Taken 6 | 1 1 1 1 1 1 . Unknown Exits Taken . | . . . . . . . Scrap Searched 9 | . . . 5 . 4 . Spaces Dug 4 | . . . 1 . . 3 Terrain Destroyed 111 | . . . 2 2 . 107 Melee . | . . . . . . . Projectile 48 | . . . 2 2 . 44 AOE 63 | . . . . . . 63 Terrain Rammed . | . . . . . . . Walls Destroyed . | . . . . . . . Machines Disabled . | . . . . . . . Actions | -11 -10 -10 -10 -7 -7 -5 --------- Run | Yrd Mat Min Sub Rec Scr Fac Total 9022 | 68 112 815 3606 1039 552 2830 Wait 1389 | . 8 33 946 76 . 326 Move 6829 | 51 77 760 2523 900 544 1974 Hop . | . . . . . . . Pick Up 107 | 7 1 4 22 18 2 53 Fast Attach 26 | 1 . . . 2 . 23 Attach 51 | 5 . 2 5 4 . 35 Detach 10 | . . . 1 2 . 7 Swap 35 | . 1 2 11 4 2 15 Drop 46 | . 1 2 5 14 4 20 Fire 460 | 4 24 12 93 19 . 308 Melee . | . . . . . . . Ram 11 | . . . . . . 11 Kick . | . . . . . . . Crush 58 | . . . . . . 58 Escape Stasis . | . . . . . . . Rewire . | . . . . . . . Trap . | . . . . . . . Miscellaneous . | . . . . . . . Route ------- -11/Scrapyard -10/Materials -10/Mines (discovered 4 exits: *Mat x2 / *Exi / *Sub) -10/Subcaves (discovered 4 exits: *Mat x2 / *Rec / *Scr) -7/Recycling (discovered 2 exits: *Fac / *Scr) -7/Scraptown -5/Factory (discovered 3 exits: *Fac / *Upp / Gar) History --------- Turn | Location | Event 4 | -11/Scrapyard | Identified exit to Materials 4 | -11/Scrapyard | Discovered exit to Materials (range 16) 94 | -11/Scrapyard | Entered Materials 94 | -10/Materials | Evolved 1 slot: Utility x1 225 | -10/Materials | Identified exit to Mines 225 | -10/Materials | Discovered exit to Mines (range 16) 300 | -10/Materials | Entered Mines 310 | -10/Mines | Build established: Hacker-Mutant 636 | -10/Mines | Assisted by bots powering up and referring to "LRC-V3" 884 | -10/Mines | Found the Drone Emporium 891 | -10/Mines | Found Prototype Device 892 | -10/Mines | Identified Thief Drone Bay 1004 | -10/Mines | Identified exit to Materials 1004 | -10/Mines | Discovered exit to Materials (range 5) 1073 | -10/Mines | Deemed a non-threat by the Exiles lab entrance 1073 | -10/Mines | Identified exit to Exiles 1073 | -10/Mines | Discovered exit to Exiles (range 5) 1172 | -10/Mines | Learned Materials trap positions 1196 | -10/Mines | Discovered exit to Materials (range 8) 1572 | -10/Mines | Identified exit to Subcaves 1572 | -10/Mines | Discovered exit to Subcaves (range 6) 1595 | -10/Mines | Entered Subcaves 1595 | -10/Subcaves | Accompanied by 3 allies 1596 | -10/Subcaves | Approached by a straggling Scientist 1812 | -10/Subcaves | Identified exit to Materials 1812 | -10/Subcaves | Discovered exit to Materials (range 16) 1859 | -10/Subcaves | Learned Materials machine intel 1861 | -10/Subcaves | Learned location of Zion (-6) 1861 | -10/Subcaves | Met a Zionite searching for "candidates" 1997 | -10/Subcaves | A swath of the cavern ceiling suddenly collapsed 2270 | -10/Subcaves | Shifting Twisted Machinery released Mak. Light Armor Plating 2480 | -10/Subcaves | Visited 4L-MR0's lab 2508 | -10/Subcaves | Found Powered Cannon 3126 | -10/Subcaves | Attached Powered Cannon, gained temporary slot: Power 3760 | -10/Subcaves | Disturbed a concealed Subdweller 4881 | -10/Subcaves | Identified exit to Recycling 4881 | -10/Subcaves | Discovered exit to Recycling (range 11) 5174 | -10/Subcaves | Discovered exit to Materials (range 5) 5176 | -10/Subcaves | Shifting Twisted Machinery released Sub. Optics 5321 | -10/Subcaves | Curiously followed by a Cobbler waking with a query about "LVR3C" 5809 | -10/Subcaves | Visited Clippyterm 5817 | -10/Subcaves | Learned Research security intel 5817 | -10/Subcaves | Learned Factory trap positions 7215 | -10/Subcaves | Build established: Hauler-Mutant 10067 | -10/Subcaves | Found SUBCON Basin 12151 | -10/Subcaves | Entered Recycling 13150 | -7/Recycling | Scanned before Scraplab entrance 13314 | -7/Recycling | Entered Scraplab 13593 | -7/Recycling | Build established: Hacker-Mutant 13614 | -7/Recycling | Identified exit to Factory 13614 | -7/Recycling | Discovered exit to Factory (range 14) 14120 | -7/Recycling | Core integrity fell below 50% 15169 | -7/Recycling | Identified exit to Scraptown 15169 | -7/Recycling | Discovered exit to Scraptown (range 3) 15173 | -7/Recycling | Entered Scraptown 15428 | -7/Scraptown | Visited Comm Corps 15461 | -7/Scraptown | Visited SPCMW 15502 | -7/Scraptown | Visited Cyclists 15520 | -7/Scraptown | Visited CPS Storage 15540 | -7/Scraptown | Heard Great Nut preacher, LISTEN AND RECITE! 15549 | -7/Scraptown | Visited Cave Peace 15657 | -7/Scraptown | Visited Awakened 16330 | -7/Scraptown | Discovered exit to Factory (range 13) 16421 | -7/Scraptown | Entered Factory 16421 | -5/Factory | Evolved 10 slots: Power x1, Propulsion x3, Utility x5, Weapon x1 16422 | -5/Factory | Loaded intel: 104 trap records 16819 | -5/Factory | Build established: Hacker-Skirmisher 16823 | -5/Factory | Spotted B-75 Beast 16863 | -5/Factory | Destroyed B-75 Beast 17249 | -5/Factory | Build established: Hauler-Tank 17550 | -5/Factory | Identified exit to Garrison 17755 | -5/Factory | Build established: Hauler-Mutant 17778 | -5/Factory | Garrison activated, responded to threat 17979 | -5/Factory | System corruption reached 10% 18468 | -5/Factory | Cargo convoy interrupted 18545 | -5/Factory | Lost 15 parts (4n8u3w) 18572 | -5/Factory | Found Prototype Processor 18587 | -5/Factory | Found Prototype Device 18587 | -5/Factory | Identified Adv. Particle Accelerator 18595 | -5/Factory | Found Adv. Particle Accelerator 18613 | -5/Factory | Found Prototype Processor 18613 | -5/Factory | Identified Exp. Target Analyzer (x2) 18815 | -5/Factory | Build established: Hacker-Gunner 19193 | -5/Factory | Identified exit to Factory 19193 | -5/Factory | Discovered exit to Factory (range 13) 19967 | -5/Factory | Found Exp. Target Analyzer 19975 | -5/Factory | Found PL-3XN's Ring of Power 20918 | -5/Factory | Repaired Hvy. Wave Gun 21385 | -5/Factory | Build established: Scavenger-Gunner 21538 | -5/Factory | Identified exit to Upper Caves 21538 | -5/Factory | Discovered exit to Upper Caves (range 5) 21551 | -5/Factory | Core integrity fell below 50% 21595 | -5/Factory | Lost 7 parts (3n2u2w) 21926 | -5/Factory | Build established: Scavenger-Mutant 22605 | -5/Factory | Build established: Hacker-Mutant 22707 | -5/Factory | Lost 5 parts (1p3u1w) 22713 | -5/Factory | Core integrity fell below 20% 23030 | -5/Factory | System corruption reached 30% 23115 | -5/Factory | Destroyed by P-70 Sage with High-powered Shock Rifle Last Messages --------------- 23054_ Imp. Medium Treads destroyed. 23055_ Slammed into P-70 Sage. 23055_ Destabilizing: System interference. 23055_ Exp. Target Analyzer temporarily disabled. 23061_ Slammed into P-70 Sage. 23067_ Destabilizing: System interference. 23067_ Thief Drone Bay temporarily disabled. 23069_ Door malfunctions. 23073_ Slammed into P-70 Sage. 23075_ System corrupted: Matter fused (-8). 23075_ Acquired 8 matter. 23079_ Slammed into P-70 Sage. 23079_ Adv. Drone Bay broken. 23079_ Destabilizing: Short circuit. 23080_ Broken Adv. Drone Bay destroyed. 23085_ Slammed into P-70 Sage. 23106_ System corrupted: Heat flow error (+105). 23106_ Thief Drone Bay destroyed. 23115_ Slammed into P-70 Sage. Map ----- +----------------------------------------------------+ | ??????????????????????????????????? | | ??????????????????????????????????? | | ??????????????????????????????????? | | ??????????????????????????????????? | | ??????????????????????????????????? | | ??????????????????????????????????? | | ??????????????????????????????????? | | ??????????????????????????????????? | | ??????????????????????????????????? | | ??????????????????????????????????? | | ??????????????????????????????????? | | ??????????????????????????????????? | | ??????????????????????????????????? | | ??????????????????????????????????? | | ??????????????????????????????????? | | ??????????????????????????????????? | | ????????##############????????????? | | ????????# #????????????? | | ????????# """"" #????????????? | | ????????# ""T"" #????????????? | | ????????# #????????????? | | ????????# #????????????? | | ????????# #????##??##### | | ????????# ! #????# ^?^ | | ????????# %% #????# ^ | | ????????# @%%! #????# ^" ""^^ | | ????????#p %% #????# "R"" | | ????????# %%% #????# """" | | ????????# !%% #????# | | ????????#####+#/###########! | | ????????????# | | ????????????# | | ????????????# | | ????????????# """" """" """" | | ????????????# """" """" """" | | ????????????# """" """" """" ### | | ??????##T ### """" """" """" ### | | ?????# """" """" """" # | | ?????# """" """" """" # | | ?????# """" """" + | | ?????# # | | ?????+ ^ # | | ?????# #################+###### | | ?????# ?????????????# | | ?????# ?????????????# | | ?????# ?????????????# """"""""" | | ?????# ??????????????# | | ?????# ??????????????# """"""""" | | ?????# ??????????????# | | ?????# ???????????????# """"""""" | +----------------------------------------------------+ Best States ------------- Heat Dissipation 129 Energy Generation 35 Energy Capacity 535 Matter Stores 300 Matter Capacity 300 Sight Range 16 Robot Scan Range 16 Terrain Scan Range 16 Terrain Scan Density 210 Jamming Range 14 Armor Coverage 250 Resistance: KI 35 Resistance: TH 35 Resistance: EX 35 Resistance: EM 35 Resistance: I 35 Resistance: S 35 Resistance: P 35 Evasion (%) 50 Target Analysis 15 Recoil Reduction 5 Particle Charging 75 Offensive Hacking 31 Item Schematics ----------------- Cargo Storage Unit | -10/Materials | Hacked Huge Storage Unit | -10/Materials | Hacked Adv. Plasma Cannon | -7/Recycling | Hacked Hvy. Flak Cannon | -7/Recycling | Hacked Lgt. Humpback | -5/Factory | Scanalyzed Lrn. Proton Cannon | -5/Factory | Hacked Railgun | -5/Factory | Hacked Robot Schematics ------------------ None Fabricated ------------ Nothing Repaired ---------- Hvy. Wave Gun | 9% | -5/Factory Studied --------- None Alien Tech Used ----------------- None Achievements -------------- None Challenges ------------ None Game ------ Seed LaserOvertunedExtractor Manual? 0 Play Time 01:12:01 Cumulative 322.6 hours Start 2026.01.29 @ 11:33:23 End 2026.01.29 @ 12:46:31 Sessions 1 Manual Loads 0 Difficulty Explorer Special Mode None Game No. 505 Rogue 0 Adventurer 0 Explorer 505 Win Type - Total 0 Types 0/0/0/0/0/0/0/0/0/0 Lore% 77 Gallery% 70 Achievement% 56 Wizard Run 0 Options --------- Layout 1 ASCII 0 Keyboard 0 Movement Mouse Keybinds 1 Fullscreen 1 Font 24/Smallcaps Map View 50x35 Zoom Use 0% Tactical HUD 1 Map Filters NONE Filters NONE Steam 1 RUN: 14d8f95d-d80b-4332-acd7-457ec45c79f5